[Event "Early-Titled-Tuesday-Blitz-September-05-2023"]
[Site "Chess.com"]
[Date "2023.09.05"]
[Round "1"]
[White "lilleper1"]
[Black "matecontomate123"]
[Result "1-0"]
[WhiteElo "2886"]
[BlackElo "2479"]
[TimeControl "180+1"]
[EndTime "8:08:21 PDT"]
[Termination "lilleper1 won on time"]

1. g3 {[%clk 0:03:00.9]} 1... g6 {[%clk 0:02:58.6]} 2. Bg2 {[%clk 0:02:59.5]}
2... Bg7 {[%clk 0:02:59.3]} 3. e4 {[%clk 0:02:59.8]} 3... e5 {[%clk 0:02:59]} 4.
Ne2 {[%clk 0:02:58.6]} 4... Ne7 {[%clk 0:02:58.6]} 5. d4 {[%clk 0:02:57.7]} 5...
d6 {[%clk 0:02:58.7]} 6. Nbc3 {[%clk 0:02:56.1]} 6... O-O {[%clk 0:02:57.8]} 7.
O-O {[%clk 0:02:55.7]} 7... Bg4 {[%clk 0:02:53.4]} 8. h3 {[%clk 0:02:52.6]} 8...
Be6 {[%clk 0:02:41.5]} 9. Be3 {[%clk 0:02:51.4]} 9... Qd7 {[%clk 0:02:37.6]} 10.
Kh2 {[%clk 0:02:50.8]} 10... exd4 {[%clk 0:02:34.5]} 11. Nxd4 {[%clk 0:02:50.4]}
11... Bc4 {[%clk 0:02:34.2]} 12. Re1 {[%clk 0:02:49.6]} 12... Nbc6 {[%clk
0:02:34.1]} 13. Qd2 {[%clk 0:02:45.1]} 13... Rae8 {[%clk 0:02:33.9]} 14. Rad1
{[%clk 0:02:43.8]} 14... f5 {[%clk 0:02:28.9]} 15. exf5 {[%clk 0:02:34.3]} 15...
Nxf5 {[%clk 0:02:28.8]} 16. Nxf5 {[%clk 0:02:31.8]} 16... Qxf5 {[%clk 0:02:28]}
17. Nd5 {[%clk 0:02:23.8]} 17... Bxd5 {[%clk 0:02:22.3]} 18. Qxd5+ {[%clk
0:02:23.4]} 18... Qxd5 {[%clk 0:02:20.6]} 19. Bxd5+ {[%clk 0:02:24.3]} 19... Kh8
{[%clk 0:02:20.5]} 20. c3 {[%clk 0:02:25]} 20... Ne5 {[%clk 0:02:07.2]} 21. f4
{[%clk 0:01:54.1]} 21... Nc6 {[%clk 0:02:05.5]} 22. Kg2 {[%clk 0:01:52]} 22...
a6 {[%clk 0:02:01.5]} 23. Kf2 {[%clk 0:01:48.4]} 23... Re7 {[%clk 0:01:59.1]}
24. h4 {[%clk 0:01:44.9]} 24... Rfe8 {[%clk 0:01:57.5]} 25. Bd2 {[%clk
0:01:44.6]} 25... Rxe1 {[%clk 0:01:54.3]} 26. Rxe1 {[%clk 0:01:44.6]} 26... Rxe1
{[%clk 0:01:53.2]} 27. Kxe1 {[%clk 0:01:45.5]} 27... Nd8 {[%clk 0:01:46.5]} 28.
Ke2 {[%clk 0:01:35.6]} 28... Bf6 {[%clk 0:01:45.7]} 29. Kd3 {[%clk 0:01:32.9]}
29... Kg7 {[%clk 0:01:44.9]} 30. Be3 {[%clk 0:01:31.3]} 30... c6 {[%clk
0:01:44.2]} 31. Bf3 {[%clk 0:01:31.4]} 31... Kf7 {[%clk 0:01:38.3]} 32. h5
{[%clk 0:01:27.9]} 32... d5 {[%clk 0:01:35.6]} 33. Bg4 {[%clk 0:01:23.5]} 33...
Ne6 {[%clk 0:01:34.3]} 34. a4 {[%clk 0:01:20.9]} 34... Be7 {[%clk 0:01:26.5]}
35. b4 {[%clk 0:01:17.2]} 35... b5 {[%clk 0:01:18.5]} 36. a5 {[%clk 0:01:14.6]}
36... c5 {[%clk 0:01:05.4]} 37. Bxe6+ {[%clk 0:00:44.8]} 37... Kxe6 {[%clk
0:01:04.2]} 38. Bxc5 {[%clk 0:00:45.7]} 38... Bf6 {[%clk 0:00:55.4]} 39. hxg6
{[%clk 0:00:40.3]} 39... hxg6 {[%clk 0:00:55]} 40. g4 {[%clk 0:00:41.2]} 40...
Bh4 {[%clk 0:00:52.5]} 41. Be3 {[%clk 0:00:35.3]} 41... Bf6 {[%clk 0:00:50]} 42.
Bd4 {[%clk 0:00:35]} 42... Be7 {[%clk 0:00:48.6]} 43. Be5 {[%clk 0:00:34.7]}
43... Bh4 {[%clk 0:00:40.5]} 44. Bd4 {[%clk 0:00:33.8]} 44... Bg3 {[%clk
0:00:37.8]} 45. Ke3 {[%clk 0:00:33.7]} 45... Be1 {[%clk 0:00:34.4]} 46. Kf3
{[%clk 0:00:33.1]} 46... Bd2 {[%clk 0:00:30.3]} 47. Kg3 {[%clk 0:00:32.9]} 47...
Bc1 {[%clk 0:00:28.7]} 48. Be5 {[%clk 0:00:31.9]} 48... g5 {[%clk 0:00:24]} 49.
Bb8 {[%clk 0:00:29.9]} 49... Bd2 {[%clk 0:00:21.9]} 50. f5+ {[%clk 0:00:21.9]}
50... Kf6 {[%clk 0:00:19.2]} 51. Kf3 {[%clk 0:00:21.1]} 51... Bxc3 {[%clk
0:00:19.2]} 52. Bd6 {[%clk 0:00:21.8]} 52... Bd4 {[%clk 0:00:16.2]} 53. Ke2
{[%clk 0:00:21.1]} 53... Kf7 {[%clk 0:00:14.5]} 54. Kd3 {[%clk 0:00:21.1]} 54...
Bb2 {[%clk 0:00:13.8]} 55. Bc7 {[%clk 0:00:20.3]} 55... Bf6 {[%clk 0:00:12.8]}
56. Bb6 {[%clk 0:00:20]} 56... Be7 {[%clk 0:00:10]} 57. Bc5 {[%clk 0:00:19.8]}
57... Bf6 {[%clk 0:00:07.5]} 58. Bd4 {[%clk 0:00:20]} 58... Be7 {[%clk
0:00:07.5]} 59. Bc3 {[%clk 0:00:20.4]} 59... Bd8 {[%clk 0:00:06.6]} 60. Bd2
{[%clk 0:00:19.3]} 60... Be7 {[%clk 0:00:06.6]} 61. Kd4 {[%clk 0:00:18.9]} 1-0

[Event "Early-Titled-Tuesday-Blitz-September-05-2023"]
[Site "Chess.com"]
[Date "2023.09.05"]
[Round "1"]
[White "ZuraTqebuchava"]
[Black "KChor05TTV"]
[Result "0-1"]
[WhiteElo "2253"]
[BlackElo "2600"]
[TimeControl "180+1"]
[EndTime "8:08:22 PDT"]
[Termination "KChor05TTV won on time"]

1. e4 {[%clk 0:02:56.7]} 1... c5 {[%clk 0:02:47.3]} 2. Nf3 {[%clk 0:02:56.5]}
2... Nc6 {[%clk 0:02:44.1]} 3. Bb5 {[%clk 0:02:56.6]} 3... Qb6 {[%clk 0:02:45]}
4. Bxc6 {[%clk 0:02:54.4]} 4... Qxc6 {[%clk 0:02:44.7]} 5. Nc3 {[%clk
0:02:52.7]} 5... d6 {[%clk 0:02:33.8]} 6. h3 {[%clk 0:02:51]} 6... Nf6 {[%clk
0:02:33.1]} 7. d3 {[%clk 0:02:49.2]} 7... g6 {[%clk 0:02:32.9]} 8. O-O {[%clk
0:02:42.9]} 8... Bg7 {[%clk 0:02:32.6]} 9. Bg5 {[%clk 0:02:42.8]} 9... h6 {[%clk
0:02:22]} 10. Bxf6 {[%clk 0:02:40.8]} 10... Bxf6 {[%clk 0:02:22.3]} 11. Qd2
{[%clk 0:02:40.7]} 11... Bg7 {[%clk 0:02:15.6]} 12. Rad1 {[%clk 0:02:31.5]}
12... O-O {[%clk 0:02:14.9]} 13. Nd5 {[%clk 0:02:23.1]} 13... Re8 {[%clk
0:02:12.3]} 14. c3 {[%clk 0:02:21.4]} 14... Be6 {[%clk 0:02:04.1]} 15. c4 {[%clk
0:02:13.8]} 15... Bd7 {[%clk 0:02:03.2]} 16. b3 {[%clk 0:02:11.6]} 16... e6
{[%clk 0:02:02.5]} 17. Ne3 {[%clk 0:02:06]} 17... f5 {[%clk 0:01:47.6]} 18. exf5
{[%clk 0:02:03.1]} 18... gxf5 {[%clk 0:01:48.5]} 19. d4 {[%clk 0:02:00]} 19...
cxd4 {[%clk 0:01:27.3]} 20. Nxd4 {[%clk 0:01:58.8]} 20... Qe4 {[%clk 0:01:20.4]}
21. Rfe1 {[%clk 0:01:52.1]} 21... Qf4 {[%clk 0:01:10.2]} 22. Ne2 {[%clk
0:01:48.5]} 22... Qg5 {[%clk 0:01:03.5]} 23. Qxd6 {[%clk 0:01:45.1]} 23... Rad8
{[%clk 0:00:58.3]} 24. Qf4 {[%clk 0:01:34.3]} 24... e5 {[%clk 0:00:51.1]} 25.
Qxg5 {[%clk 0:01:30.6]} 25... hxg5 {[%clk 0:00:52]} 26. Rd6 {[%clk 0:01:23.1]}
26... f4 {[%clk 0:00:44.1]} 27. Nd5 {[%clk 0:01:14.6]} 27... Bc6 {[%clk
0:00:41.3]} 28. Rxd8 {[%clk 0:01:13.4]} 28... Rxd8 {[%clk 0:00:42.1]} 29. Nec3
{[%clk 0:01:11.4]} 29... Kf7 {[%clk 0:00:39.9]} 30. f3 {[%clk 0:01:06.4]} 30...
Bf8 {[%clk 0:00:38.8]} 31. Rxe5 {[%clk 0:00:59.1]} 31... Bc5+ {[%clk 0:00:38.9]}
32. Kf1 {[%clk 0:00:50.7]} 32... Kg6 {[%clk 0:00:36.4]} 33. Ke2 {[%clk
0:00:37.5]} 33... Bd4 {[%clk 0:00:24]} 34. Re7 {[%clk 0:00:30.1]} 34... b5
{[%clk 0:00:19.2]} 35. Re6+ {[%clk 0:00:27.9]} 35... Kf5 {[%clk 0:00:18.5]} 36.
Rxc6 {[%clk 0:00:26.4]} 36... b4 {[%clk 0:00:19.3]} 37. Nb5 {[%clk 0:00:22.3]}
37... Be5 {[%clk 0:00:17.4]} 38. Ra6 {[%clk 0:00:17.6]} 38... Re8 {[%clk
0:00:16.7]} 39. Kd3 {[%clk 0:00:14.2]} 39... Bb8 {[%clk 0:00:12.6]} 40. Rf6+
{[%clk 0:00:12.6]} 40... Ke5 {[%clk 0:00:13.4]} 41. Rg6 {[%clk 0:00:10.4]} 41...
Kf5 {[%clk 0:00:12.9]} 42. Rg7 {[%clk 0:00:10.5]} 42... Rd8 {[%clk 0:00:11.7]}
43. Rf7+ {[%clk 0:00:10]} 43... Kg6 {[%clk 0:00:11.8]} 44. Rb7 {[%clk
0:00:09.5]} 44... Kh5 {[%clk 0:00:11.7]} 45. Rf7 {[%clk 0:00:08.7]} 45... a6
{[%clk 0:00:11.2]} 46. Nd4 {[%clk 0:00:07.2]} 46... Kh4 {[%clk 0:00:11.4]} 47.
Nf5+ {[%clk 0:00:07]} 47... Kh5 {[%clk 0:00:11.1]} 48. Ne7 {[%clk 0:00:07]}
48... Kh4 {[%clk 0:00:10]} 49. Ke2 {[%clk 0:00:06.3]} 49... Re8 {[%clk
0:00:09.4]} 50. Kf1 {[%clk 0:00:05.7]} 50... Kg3 {[%clk 0:00:09.3]} 51. Nf5+
{[%clk 0:00:05.1]} 51... Kh2 {[%clk 0:00:09.3]} 52. Rg7 {[%clk 0:00:04]} 52...
Be5 {[%clk 0:00:08.8]} 53. Re7 {[%clk 0:00:02.2]} 53... Rf8 {[%clk 0:00:05.2]}
0-1

[Event "Early-Titled-Tuesday-Blitz-September-05-2023"]
[Site "Chess.com"]
[Date "2023.09.05"]
[Round "1"]
[White "Fh2411"]
[Black "suspiciumchess"]
[Result "1-0"]
[WhiteElo "2616"]
[BlackElo "2281"]
[TimeControl "180+1"]
[EndTime "8:08:33 PDT"]
[Termination "Fh2411 won by checkmate"]

1. d4 {[%clk 0:02:31.7]} 1... d5 {[%clk 0:02:55.2]} 2. Nf3 {[%clk 0:02:10.1]}
2... Nf6 {[%clk 0:02:53.6]} 3. Bf4 {[%clk 0:02:05.4]} 3... c5 {[%clk 0:02:51.8]}
4. e3 {[%clk 0:02:03.8]} 4... Nc6 {[%clk 0:02:51.5]} 5. Nbd2 {[%clk 0:02:02.9]}
5... Bf5 {[%clk 0:02:38.3]} 6. dxc5 {[%clk 0:01:54.9]} 6... e6 {[%clk
0:02:36.2]} 7. Nd4 {[%clk 0:01:55.4]} 7... Bxc5 {[%clk 0:02:26.4]} 8. Nxf5
{[%clk 0:01:49.6]} 8... exf5 {[%clk 0:02:27.3]} 9. c3 {[%clk 0:01:48.6]} 9...
O-O {[%clk 0:02:26.3]} 10. Be2 {[%clk 0:01:49]} 10... Re8 {[%clk 0:02:25.8]} 11.
O-O {[%clk 0:01:49.3]} 11... Ne4 {[%clk 0:02:26]} 12. Nb3 {[%clk 0:01:49.7]}
12... Bb6 {[%clk 0:02:22.8]} 13. Bg3 {[%clk 0:01:36.1]} 13... g6 {[%clk
0:02:08.1]} 14. Nd4 {[%clk 0:01:35.3]} 14... h5 {[%clk 0:01:59.2]} 15. Bb5
{[%clk 0:01:06.9]} 15... h4 {[%clk 0:01:43.3]} 16. Bf4 {[%clk 0:01:06.9]} 16...
Rc8 {[%clk 0:01:39]} 17. h3 {[%clk 0:01:02.9]} 17... Re7 {[%clk 0:01:32.8]} 18.
Qa4 {[%clk 0:00:52]} 18... Ne5 {[%clk 0:01:19]} 19. Rad1 {[%clk 0:00:50.9]}
19... a6 {[%clk 0:01:16.9]} 20. Be2 {[%clk 0:00:50.8]} 20... Nc4 {[%clk
0:01:09.8]} 21. Bxc4 {[%clk 0:00:38.4]} 21... Rxc4 {[%clk 0:01:07.3]} 22. Qb3
{[%clk 0:00:39]} 22... Bc7 {[%clk 0:01:05.2]} 23. Ne2 {[%clk 0:00:27.6]} 23...
Rd7 {[%clk 0:00:55.8]} 24. Bxc7 {[%clk 0:00:25.1]} 24... Qxc7 {[%clk 0:00:53.7]}
25. Nf4 {[%clk 0:00:23.9]} 25... Rc5 {[%clk 0:00:53.5]} 26. Rxd5 {[%clk
0:00:21.4]} 26... Rcxd5 {[%clk 0:00:48.3]} 27. Nxd5 {[%clk 0:00:22.3]} 27... Qc6
{[%clk 0:00:44.1]} 28. Rd1 {[%clk 0:00:21.3]} 28... Kh8 {[%clk 0:00:41.4]} 29.
Rd4 {[%clk 0:00:19.1]} 29... Nc5 {[%clk 0:00:39.8]} 30. Qd1 {[%clk 0:00:18.9]}
30... Ne6 {[%clk 0:00:31.7]} 31. Rxh4+ {[%clk 0:00:19.5]} 31... Kg7 {[%clk
0:00:29.7]} 32. c4 {[%clk 0:00:19.9]} 32... b5 {[%clk 0:00:29.1]} 33. b3 {[%clk
0:00:20.4]} 33... bxc4 {[%clk 0:00:29.1]} 34. Qa1+ {[%clk 0:00:17.1]} 34... c3
{[%clk 0:00:23.9]} 35. Qxc3+ {[%clk 0:00:15.7]} 35... Qxc3 {[%clk 0:00:23.7]}
36. Nxc3 {[%clk 0:00:16.6]} 36... Rd2 {[%clk 0:00:22.1]} 37. Ra4 {[%clk
0:00:16.5]} 37... Nc5 {[%clk 0:00:20.6]} 38. Ra5 {[%clk 0:00:16.8]} 38... Nd3
{[%clk 0:00:18.7]} 39. Rd5 {[%clk 0:00:15.2]} 39... Kf6 {[%clk 0:00:15.2]} 40.
Rd4 {[%clk 0:00:14.2]} 40... Ke5 {[%clk 0:00:14.4]} 41. g3 {[%clk 0:00:13.8]}
41... f6 {[%clk 0:00:06.8]} 42. h4 {[%clk 0:00:14]} 42... Ke6 {[%clk 0:00:06.8]}
43. Nd5 {[%clk 0:00:10.4]} 43... a5 {[%clk 0:00:03.7]} 44. Rxd3 {[%clk
0:00:09.8]} 44... Rxd3 {[%clk 0:00:03.8]} 45. Nf4+ {[%clk 0:00:10]} 45... Ke5
{[%clk 0:00:04.4]} 46. Nxd3+ {[%clk 0:00:10.9]} 46... Ke4 {[%clk 0:00:04.9]} 47.
Nb2 {[%clk 0:00:10.6]} 47... Kf3 {[%clk 0:00:04.8]} 48. Kf1 {[%clk 0:00:10.4]}
48... g5 {[%clk 0:00:04.4]} 49. hxg5 {[%clk 0:00:11.3]} 49... fxg5 {[%clk
0:00:05.3]} 50. Nc4 {[%clk 0:00:12]} 50... a4 {[%clk 0:00:05.3]} 51. bxa4 {[%clk
0:00:11.9]} 51... f4 {[%clk 0:00:06.2]} 52. exf4 {[%clk 0:00:12.3]} 52... gxf4
{[%clk 0:00:07.1]} 53. gxf4 {[%clk 0:00:12.8]} 53... Ke4 {[%clk 0:00:05.9]} 54.
a5 {[%clk 0:00:13.7]} 54... Kd3 {[%clk 0:00:06.8]} 55. a6 {[%clk 0:00:14.3]}
55... Kc2 {[%clk 0:00:07.3]} 56. a7 {[%clk 0:00:15.2]} 56... Kb1 {[%clk
0:00:07.4]} 57. a8=Q {[%clk 0:00:16.1]} 57... Ka1 {[%clk 0:00:08.3]} 58. Qe4
{[%clk 0:00:15.1]} 58... Kxa2 {[%clk 0:00:07.9]} 59. Qe3 {[%clk 0:00:15.4]}
59... Kb1 {[%clk 0:00:07.9]} 60. Qd3+ {[%clk 0:00:15.8]} 60... Ka1 {[%clk
0:00:08]} 61. Qd2 {[%clk 0:00:15.7]} 61... Kb1 {[%clk 0:00:08.6]} 62. Qb2#
{[%clk 0:00:16.6]} 1-0

[Event "Early-Titled-Tuesday-Blitz-September-05-2023"]
[Site "Chess.com"]
[Date "2023.09.05"]
[Round "1"]
[White "Casper"]
[Black "CSB7"]
[Result "0-1"]
[WhiteElo "2397"]
[BlackElo "2701"]
[TimeControl "180+1"]
[EndTime "8:08:46 PDT"]
[Termination "CSB7 won by resignation"]

1. e4 {[%clk 0:03:00.9]} 1... e5 {[%clk 0:02:59.9]} 2. d4 {[%clk 0:03:01.4]}
2... exd4 {[%clk 0:02:59.3]} 3. Qxd4 {[%clk 0:03:02.3]} 3... Nc6 {[%clk
0:02:58.1]} 4. Qe3 {[%clk 0:03:03]} 4... Nf6 {[%clk 0:02:55.6]} 5. Nc3 {[%clk
0:03:03.6]} 5... Bb4 {[%clk 0:02:55.9]} 6. Bd2 {[%clk 0:03:03.1]} 6... O-O
{[%clk 0:02:56.2]} 7. O-O-O {[%clk 0:03:03.6]} 7... Re8 {[%clk 0:02:56.9]} 8.
Qf4 {[%clk 0:03:02.2]} 8... Bxc3 {[%clk 0:02:53.9]} 9. Bxc3 {[%clk 0:03:02.3]}
9... Rxe4 {[%clk 0:02:53.1]} 10. Qg3 {[%clk 0:02:57.5]} 10... d5 {[%clk
0:02:51.2]} 11. f3 {[%clk 0:02:53.4]} 11... Re6 {[%clk 0:02:48.1]} 12. Bc4
{[%clk 0:02:53.1]} 12... Rd6 {[%clk 0:02:43.6]} 13. Bxf6 {[%clk 0:02:45]} 13...
Qxf6 {[%clk 0:02:43.2]} 14. Bxd5 {[%clk 0:02:33.1]} 14... Nb4 {[%clk 0:02:07.5]}
15. Qe1 {[%clk 0:02:31.7]} 15... Qf4+ {[%clk 0:01:04.2]} 16. Kb1 {[%clk
0:02:31.9]} 16... Bf5 {[%clk 0:01:04.5]} 17. Ne2 {[%clk 0:01:47.9]} 17... Bxc2+
{[%clk 0:00:48.2]} 18. Ka1 {[%clk 0:01:47.3]} 18... Bxd1 {[%clk 0:00:46.2]} 19.
Nxf4 {[%clk 0:01:33.1]} 19... Nc2+ {[%clk 0:00:46.3]} 20. Kb1 {[%clk 0:01:33.9]}
20... Nxe1 {[%clk 0:00:47.2]} 21. Rxe1 {[%clk 0:01:33.7]} 21... Ba4 {[%clk
0:00:39.2]} 22. Re7 {[%clk 0:01:34.2]} 22... Rd7 {[%clk 0:00:30.3]} 23. Bxf7+
{[%clk 0:01:13.9]} 23... Kf8 {[%clk 0:00:29.8]} 24. Rxd7 {[%clk 0:00:48.2]}
24... Bxd7 {[%clk 0:00:30.7]} 25. Bd5 {[%clk 0:00:44.8]} 25... c6 {[%clk
0:00:30.7]} 26. Be4 {[%clk 0:00:44.7]} 26... g6 {[%clk 0:00:31.1]} 27. Nd3
{[%clk 0:00:44.9]} 27... Bf5 {[%clk 0:00:29.6]} 28. Bxf5 {[%clk 0:00:42.6]}
28... gxf5 {[%clk 0:00:30.5]} 29. Kc2 {[%clk 0:00:43.2]} 29... Ke7 {[%clk
0:00:29.7]} 30. Kd2 {[%clk 0:00:41.8]} 30... b6 {[%clk 0:00:29.3]} 31. Ke3
{[%clk 0:00:41]} 31... Kf6 {[%clk 0:00:27.3]} 32. Nb4 {[%clk 0:00:39]} 32...
Re8+ {[%clk 0:00:24.3]} 33. Kd3 {[%clk 0:00:38.1]} 33... Re6 {[%clk 0:00:25.2]}
34. Nc2 {[%clk 0:00:33.9]} 34... Rd6+ {[%clk 0:00:24.9]} 35. Ke3 {[%clk
0:00:34.1]} 35... Ke5 {[%clk 0:00:24.5]} 36. Nb4 {[%clk 0:00:32.3]} 36... f4+
{[%clk 0:00:22.4]} 37. Ke2 {[%clk 0:00:32.1]} 37... c5 {[%clk 0:00:20.5]} 38.
Nd3+ {[%clk 0:00:31.5]} 38... Kf5 {[%clk 0:00:20.9]} 39. b3 {[%clk 0:00:29.1]}
39... Rg6 {[%clk 0:00:18.7]} 40. Kf2 {[%clk 0:00:27.1]} 40... Rd6 {[%clk
0:00:19.3]} 41. Ke2 {[%clk 0:00:27.4]} 41... Rg6 {[%clk 0:00:19.1]} 42. Kf2
{[%clk 0:00:27.6]} 42... h5 {[%clk 0:00:19.8]} 43. Kf1 {[%clk 0:00:20.7]} 43...
h4 {[%clk 0:00:19]} 44. Kf2 {[%clk 0:00:21.1]} 44... Rd6 {[%clk 0:00:16.2]} 45.
Ke2 {[%clk 0:00:21]} 45... Re6+ {[%clk 0:00:16.7]} 46. Kf2 {[%clk 0:00:21.3]}
46... Rd6 {[%clk 0:00:13.1]} 47. Ke2 {[%clk 0:00:21.7]} 47... Rd5 {[%clk
0:00:13.7]} 48. Nf2 {[%clk 0:00:17.8]} 48... Rd4 {[%clk 0:00:11.7]} 49. Nd3
{[%clk 0:00:16]} 49... a6 {[%clk 0:00:12]} 50. a4 {[%clk 0:00:14.5]} 50... Rd5
{[%clk 0:00:10.9]} 51. Nb2 {[%clk 0:00:13.7]} 51... b5 {[%clk 0:00:11]} 52. axb5
{[%clk 0:00:08.3]} 52... axb5 {[%clk 0:00:11.9]} 53. Nd3 {[%clk 0:00:08]} 53...
c4 {[%clk 0:00:11.9]} 54. bxc4 {[%clk 0:00:08.9]} 54... bxc4 {[%clk 0:00:12.8]}
55. Ne1 {[%clk 0:00:08.1]} 55... Re5+ {[%clk 0:00:11.1]} 56. Kd2 {[%clk
0:00:08]} 56... Re3 {[%clk 0:00:08.1]} 57. Nc2 {[%clk 0:00:08]} 57... Rd3+
{[%clk 0:00:08.3]} 58. Ke2 {[%clk 0:00:08.7]} 58... Ke5 {[%clk 0:00:08.7]} 59.
Ne1 {[%clk 0:00:07.2]} 59... Rb3 {[%clk 0:00:07.5]} 60. Nc2 {[%clk 0:00:06.6]}
60... Kd5 {[%clk 0:00:07.8]} 61. Kd2 {[%clk 0:00:06.6]} 61... Rd3+ {[%clk
0:00:08]} 62. Ke2 {[%clk 0:00:07]} 62... Kc5 {[%clk 0:00:06.8]} 63. Ne1 {[%clk
0:00:06.8]} 63... Rc3 {[%clk 0:00:07]} 64. Kd2 {[%clk 0:00:06.9]} 64... Ra3
{[%clk 0:00:05.3]} 65. Nc2 {[%clk 0:00:07]} 65... Ra2 {[%clk 0:00:05.7]} 66. Kc3
{[%clk 0:00:07.7]} 66... Ra8 {[%clk 0:00:04.3]} 67. Nd4 {[%clk 0:00:06.5]} 67...
Ra3+ {[%clk 0:00:04]} 68. Kb2 {[%clk 0:00:07.1]} 68... Kxd4 {[%clk 0:00:04.4]}
69. Kxa3 {[%clk 0:00:07.4]} 69... Kc3 {[%clk 0:00:05.3]} 70. Ka2 {[%clk
0:00:07.6]} 70... Kd2 {[%clk 0:00:05.5]} 71. g4 {[%clk 0:00:07.3]} 71... fxg3
{[%clk 0:00:05.4]} 72. f4 {[%clk 0:00:07.6]} 72... gxh2 {[%clk 0:00:05]} 0-1

[Event "Early-Titled-Tuesday-Blitz-September-05-2023"]
[Site "Chess.com"]
[Date "2023.09.05"]
[Round "1"]
[White "ChEsper99"]
[Black "ArtemDyachuk"]
[Result "1/2-1/2"]
[WhiteElo "2166"]
[BlackElo "2567"]
[TimeControl "180+1"]
[EndTime "8:08:46 PDT"]
[Termination "Game drawn by repetition"]

1. e4 {[%clk 0:03:00.9]} 1... c6 {[%clk 0:02:56.6]} 2. Nc3 {[%clk 0:02:59.1]}
2... d5 {[%clk 0:02:56.2]} 3. Nf3 {[%clk 0:02:58.9]} 3... Nf6 {[%clk 0:02:55.1]}
4. e5 {[%clk 0:02:58.7]} 4... Ne4 {[%clk 0:02:55.1]} 5. Ne2 {[%clk 0:02:58.3]}
5... Qb6 {[%clk 0:02:55.1]} 6. d4 {[%clk 0:02:53.3]} 6... e6 {[%clk 0:02:54.7]}
7. Ng3 {[%clk 0:02:50.3]} 7... c5 {[%clk 0:02:54.6]} 8. Bd3 {[%clk 0:02:46.5]}
8... cxd4 {[%clk 0:02:36]} 9. Nxe4 {[%clk 0:02:36.3]} 9... dxe4 {[%clk
0:02:36.9]} 10. Bxe4 {[%clk 0:02:37.1]} 10... Nc6 {[%clk 0:02:36]} 11. O-O
{[%clk 0:02:09.8]} 11... Bd7 {[%clk 0:02:35.1]} 12. a3 {[%clk 0:02:01]} 12...
Qc7 {[%clk 0:02:28.1]} 13. Bxc6 {[%clk 0:01:54.8]} 13... Bxc6 {[%clk 0:02:27.5]}
14. Nxd4 {[%clk 0:01:27.3]} 14... O-O-O {[%clk 0:02:26.1]} 15. Re1 {[%clk
0:01:17.5]} 15... Bc5 {[%clk 0:02:24.2]} 16. c3 {[%clk 0:01:17.7]} 16... Rd5
{[%clk 0:02:19.7]} 17. Qg4 {[%clk 0:01:08.2]} 17... Bxd4 {[%clk 0:02:01.8]} 18.
cxd4 {[%clk 0:01:08.4]} 18... g6 {[%clk 0:02:00.9]} 19. Be3 {[%clk 0:01:02.4]}
19... h5 {[%clk 0:01:57.2]} 20. Qe2 {[%clk 0:01:02.5]} 20... g5 {[%clk
0:01:47.4]} 21. b4 {[%clk 0:01:01.9]} 21... Kb8 {[%clk 0:01:46.6]} 22. a4 {[%clk
0:01:01.5]} 22... a6 {[%clk 0:01:45.4]} 23. Bxg5 {[%clk 0:00:55.9]} 23... Rg8
{[%clk 0:01:43]} 24. h4 {[%clk 0:00:55.7]} 24... Rxd4 {[%clk 0:01:40]} 25. b5
{[%clk 0:00:51.5]} 25... Bd5 {[%clk 0:01:36.2]} 26. bxa6 {[%clk 0:00:50.5]}
26... Rg4 {[%clk 0:00:32.2]} 27. g3 {[%clk 0:00:44.1]} 27... Qc5 {[%clk
0:00:26.9]} 28. Be3 {[%clk 0:00:20.2]} 28... Qb4 {[%clk 0:00:23.5]} 29. Reb1
{[%clk 0:00:15.5]} 29... Rxg3+ {[%clk 0:00:14.5]} 30. fxg3 {[%clk 0:00:15.2]}
30... Qxh4 {[%clk 0:00:11.9]} 31. Kf1 {[%clk 0:00:04.7]} 31... Rxg3 {[%clk
0:00:06.9]} 32. a7+ {[%clk 0:00:03.5]} 32... Ka8 {[%clk 0:00:05.7]} 33. Qf2
{[%clk 0:00:02.6]} 33... Qg4 {[%clk 0:00:04.2]} 34. Rc1 {[%clk 0:00:01.6]} 34...
Bc4+ {[%clk 0:00:03.3]} 35. Ke1 {[%clk 0:00:01.4]} 35... Rg1+ {[%clk 0:00:03]}
36. Kd2 {[%clk 0:00:02]} 36... Rg2 {[%clk 0:00:02.3]} 37. Qxg2 {[%clk
0:00:01.5]} 37... Qxg2+ {[%clk 0:00:03.2]} 38. Kc3 {[%clk 0:00:01.9]} 38... Qc6
{[%clk 0:00:03.4]} 39. Kb4 {[%clk 0:00:02.1]} 39... Qe4 {[%clk 0:00:03.4]} 40.
Rxc4 {[%clk 0:00:01.8]} 40... Qxe3 {[%clk 0:00:03.9]} 41. Rac1 {[%clk
0:00:02.3]} 41... Kxa7 {[%clk 0:00:03.9]} 42. R1c3 {[%clk 0:00:02.8]} 42... Qxe5
{[%clk 0:00:04]} 43. Rc7 {[%clk 0:00:03.5]} 43... Qd6+ {[%clk 0:00:04]} 44. R3c5
{[%clk 0:00:03.4]} 44... h4 {[%clk 0:00:03.7]} 45. Kb5 {[%clk 0:00:03.9]} 45...
Qb6+ {[%clk 0:00:03.2]} 46. Kc4 {[%clk 0:00:04]} 46... h3 {[%clk 0:00:03.5]} 47.
Rxf7 {[%clk 0:00:04.3]} 47... Qb2 {[%clk 0:00:02]} 48. Ra5+ {[%clk 0:00:02.7]}
48... Kb8 {[%clk 0:00:01.3]} 49. Rf8+ {[%clk 0:00:02.3]} 49... Kc7 {[%clk
0:00:01.3]} 50. Rc5+ {[%clk 0:00:02.4]} 50... Kd6 {[%clk 0:00:01.9]} 51. Rd8+
{[%clk 0:00:01.7]} 51... Ke7 {[%clk 0:00:02.4]} 52. Rh8 {[%clk 0:00:01.7]} 52...
h2 {[%clk 0:00:02.8]} 53. Rxh2 {[%clk 0:00:01.1]} 53... Qxh2 {[%clk 0:00:01.7]}
54. Rb5 {[%clk 0:00:01.8]} 54... Kf6 {[%clk 0:00:02.1]} 55. Rxb7 {[%clk
0:00:01.7]} 55... Qh4+ {[%clk 0:00:02.5]} 56. Kb5 {[%clk 0:00:02.3]} 56... Qg5+
{[%clk 0:00:03]} 57. Kb6 {[%clk 0:00:02.9]} 57... Qd5 {[%clk 0:00:03.2]} 58. a5
{[%clk 0:00:03.6]} 58... e5 {[%clk 0:00:03.6]} 59. a6 {[%clk 0:00:04.1]} 59...
Qb3+ {[%clk 0:00:03.9]} 60. Ka7 {[%clk 0:00:04.3]} 60... Qa4 {[%clk 0:00:03.6]}
61. Rb6+ {[%clk 0:00:03.4]} 61... Kf5 {[%clk 0:00:03.8]} 62. Kb7 {[%clk
0:00:04.3]} 62... Qd7+ {[%clk 0:00:02.8]} 63. Kb8 {[%clk 0:00:04.8]} 63... Qd8+
{[%clk 0:00:02.1]} 64. Kb7 {[%clk 0:00:05.4]} 64... Qd7+ {[%clk 0:00:02.4]} 65.
Kb8 {[%clk 0:00:06]} 65... Qd4 {[%clk 0:00:02.7]} 66. Kb7 {[%clk 0:00:05.7]}
66... e4 {[%clk 0:00:03.1]} 67. a7 {[%clk 0:00:05.9]} 67... Qd5+ {[%clk
0:00:03.1]} 68. Kb8 {[%clk 0:00:06.2]} 68... Qg8+ {[%clk 0:00:03.1]} 69. Kb7
{[%clk 0:00:06.4]} 69... Qf7+ {[%clk 0:00:03.5]} 70. Kb8 {[%clk 0:00:06.9]}
70... Qe8+ {[%clk 0:00:03.7]} 71. Kb7 {[%clk 0:00:07.3]} 71... Qd7+ {[%clk
0:00:03.7]} 72. Kb8 {[%clk 0:00:07.9]} 72... Qd8+ {[%clk 0:00:03.3]} 73. Kb7
{[%clk 0:00:08.4]} 73... Qd5+ {[%clk 0:00:03.7]} 74. Kb8 {[%clk 0:00:08.7]}
74... Qc5 {[%clk 0:00:03.1]} 75. Kb7 {[%clk 0:00:07.4]} 75... Qd5+ {[%clk
0:00:03.2]} 1/2-1/2